{"text_format":"1","workbook":"xlsx","n_sheets":19,"sheets":["synthese","etudiant","s1","s2","s3","s4","s5","s6","s7","s8","s9","s10","s11","s12","s13","s14","s15","s16","publipostage"],"not_rendered":{"charts":1,"images":0,"macros":1,"external_links":0,"defined_names":1,"comments":0,"pivot_tables":0},"unopened":[],"bounds":{"document_bytes":16777216,"sheet_cells":100000,"rows_first":2000,"rows_last":500,"rows_between":2000,"halvings":0,"cell_chars":16384,"cell_head_chars":4096},"cells_cut":0,"cells_raw":0,"read":"whole","date_system":"1900"}

{"sheet":"synthese","index":0,"n_rows":6,"n_cols":8,"rows_kept":6,"cut":false,"hidden":false,"merged":[]}
["Semaine","Nom","Email","Total",null,null,"s7","s6"]
[7,"Alfred","...",4,null,null,2,0]
[null,"Berthe","...",2,null,null,0,1]
[null,"Cesar","...",3,null,null,0,1]
[null,"Didier","...",2,null,null,0,1]
[null,"Eliane","...",3,null,null,3,0]

{"sheet":"etudiant","index":1,"n_rows":22,"n_cols":9,"rows_kept":22,"cut":false,"hidden":false,"merged":[]}
["Etudiant",null,null,null,null,null,null,"Total","Cumul"]
["Alfred",{"$f":"MATCH($A$2,idEtudiant)","v":1},null,null,null,null,1,{"$f":"INDIRECT(\"s\" & G2 & \"!$G$\" & ($B$2+1))","v":1},{"$f":"H2","v":1}]
[null,null,null,null,null,null,2,0,{"$f":"I2+H3","v":1}]
[null,null,null,null,null,null,3,0,{"$f":"I3+H4","v":1}]
[null,null,null,null,"Actualiser",null,4,1,2]
[null,null,null,null,null,null,5,0,2]
[null,null,null,null,null,null,6,0,2]
[null,null,null,null,null,null,7,2,4]
[null,null,null,null,null,null,8,0,4]
[null,null,null,null,null,null,9,0,4]
[null,null,null,null,null,null,10,0,4]
[null,null,null,null,null,null,11,0,4]
[null,null,null,null,null,null,12,0,4]
[null,null,null,null,null,null,13,0,4]
[null,null,null,null,null,null,14,0,4]
[null,null,null,null,null,null,15,0,4]
[null,null,null,null,null,null,16,0,4]
[]
[]
[null,null,null,null,2]
[]
[null,null,null,null,true]

{"sheet":"s1","index":2,"n_rows":6,"n_cols":7,"rows_kept":6,"cut":false,"hidden":false,"merged":[]}
["Nom","Lundi","Mardi","Mercredi","Jeudi","Vendredi","Total"]
[{"$f":"synthese!B2","v":"Alfred"},null,1,null,null,null,{"$f":"SUM(B2:F2)","v":1}]
[{"$f":"synthese!B3","v":"Berthe"},null,null,null,1,null,{"$f":"SUM(B3:F3)","v":1}]
[{"$f":"synthese!B4","v":"Cesar"},null,null,null,null,null,0]
[{"$f":"synthese!B5","v":"Didier"},null,null,null,null,null,0]
[{"$f":"synthese!B6","v":"Eliane"},null,null,null,null,null,0]

{"sheet":"s2","index":3,"n_rows":6,"n_cols":7,"rows_kept":6,"cut":false,"hidden":false,"merged":[]}
["Nom","Lundi","Mardi","Mercredi","Jeudi","Vendredi","Total"]
[{"$f":"synthese!B2","v":"Alfred"},null,null,null,null,null,{"$f":"SUM(B2:F2)","v":0}]
[{"$f":"synthese!B3","v":"Berthe"},null,null,null,null,null,{"$f":"SUM(B3:F3)","v":0}]
[{"$f":"synthese!B4","v":"Cesar"},null,null,null,null,null,0]
[{"$f":"synthese!B5","v":"Didier"},null,null,null,null,null,0]
[{"$f":"synthese!B6","v":"Eliane"},null,null,null,null,null,0]

{"sheet":"s3","index":4,"n_rows":6,"n_cols":7,"rows_kept":6,"cut":false,"hidden":false,"merged":[]}
["Nom","Lundi","Mardi","Mercredi","Jeudi","Vendredi","Total"]
[{"$f":"synthese!B2","v":"Alfred"},null,null,null,null,null,{"$f":"SUM(B2:F2)","v":0}]
[{"$f":"synthese!B3","v":"Berthe"},null,null,null,null,null,{"$f":"SUM(B3:F3)","v":0}]
[{"$f":"synthese!B4","v":"Cesar"},null,1,null,null,null,1]
[{"$f":"synthese!B5","v":"Didier"},null,null,null,null,null,0]
[{"$f":"synthese!B6","v":"Eliane"},null,null,null,null,null,0]

{"sheet":"s4","index":5,"n_rows":6,"n_cols":7,"rows_kept":6,"cut":false,"hidden":false,"merged":[]}
["Nom","Lundi","Mardi","Mercredi","Jeudi","Vendredi","Total"]
[{"$f":"synthese!B2","v":"Alfred"},null,null,null,1,null,{"$f":"SUM(B2:F2)","v":1}]
[{"$f":"synthese!B3","v":"Berthe"},null,null,null,null,null,{"$f":"SUM(B3:F3)","v":0}]
[{"$f":"synthese!B4","v":"Cesar"},null,null,null,null,null,0]
[{"$f":"synthese!B5","v":"Didier"},null,1,null,null,null,1]
[{"$f":"synthese!B6","v":"Eliane"},null,null,null,null,null,0]

{"sheet":"s5","index":6,"n_rows":6,"n_cols":7,"rows_kept":6,"cut":false,"hidden":false,"merged":[]}
["Nom","Lundi","Mardi","Mercredi","Jeudi","Vendredi","Total"]
[{"$f":"synthese!B2","v":"Alfred"},null,null,null,null,null,{"$f":"SUM(B2:F2)","v":0}]
[{"$f":"synthese!B3","v":"Berthe"},null,null,null,null,null,{"$f":"SUM(B3:F3)","v":0}]
[{"$f":"synthese!B4","v":"Cesar"},null,1,null,null,null,1]
[{"$f":"synthese!B5","v":"Didier"},null,null,null,null,null,0]
[{"$f":"synthese!B6","v":"Eliane"},null,null,null,null,null,0]

{"sheet":"s6","index":7,"n_rows":6,"n_cols":7,"rows_kept":6,"cut":false,"hidden":false,"merged":[]}
["Nom","Lundi","Mardi","Mercredi","Jeudi","Vendredi","Total"]
[{"$f":"synthese!B2","v":"Alfred"},null,null,null,null,null,{"$f":"SUM(B2:F2)","v":0}]
[{"$f":"synthese!B3","v":"Berthe"},null,null,1,null,null,{"$f":"SUM(B3:F3)","v":1}]
[{"$f":"synthese!B4","v":"Cesar"},null,null,null,1,null,1]
[{"$f":"synthese!B5","v":"Didier"},null,null,null,1,null,1]
[{"$f":"synthese!B6","v":"Eliane"},null,null,null,null,null,0]

{"sheet":"s7","index":8,"n_rows":6,"n_cols":7,"rows_kept":6,"cut":false,"hidden":false,"merged":[]}
["Nom","Lundi","Mardi","Mercredi","Jeudi","Vendredi","Total"]
[{"$f":"synthese!B2","v":"Alfred"},null,null,1,1,null,{"$f":"SUM(B2:F2)","v":2}]
[{"$f":"synthese!B3","v":"Berthe"},null,null,null,null,null,{"$f":"SUM(B3:F3)","v":0}]
[{"$f":"synthese!B4","v":"Cesar"},null,null,null,null,null,0]
[{"$f":"synthese!B5","v":"Didier"},null,null,null,null,null,0]
[{"$f":"synthese!B6","v":"Eliane"},null,1,1,1,null,3]

{"sheet":"s8","index":9,"n_rows":6,"n_cols":7,"rows_kept":6,"cut":false,"hidden":false,"merged":[]}
["Nom","Lundi","Mardi","Mercredi","Jeudi","Vendredi","Total"]
[{"$f":"synthese!B2","v":"Alfred"},null,null,null,null,null,{"$f":"SUM(B2:F2)","v":0}]
[{"$f":"synthese!B3","v":"Berthe"},null,null,null,null,null,{"$f":"SUM(B3:F3)","v":0}]
[{"$f":"synthese!B4","v":"Cesar"},null,null,null,null,null,0]
[{"$f":"synthese!B5","v":"Didier"},null,null,null,null,null,0]
[{"$f":"synthese!B6","v":"Eliane"},null,null,null,null,null,0]

{"sheet":"s9","index":10,"n_rows":6,"n_cols":7,"rows_kept":6,"cut":false,"hidden":false,"merged":[]}
["Nom","Lundi","Mardi","Mercredi","Jeudi","Vendredi","Total"]
[{"$f":"synthese!B2","v":"Alfred"},null,null,null,null,null,{"$f":"SUM(B2:F2)","v":0}]
[{"$f":"synthese!B3","v":"Berthe"},null,null,null,null,null,{"$f":"SUM(B3:F3)","v":0}]
[{"$f":"synthese!B4","v":"Cesar"},null,null,null,null,null,0]
[{"$f":"synthese!B5","v":"Didier"},null,null,null,null,null,0]
[{"$f":"synthese!B6","v":"Eliane"},null,null,null,null,null,0]

{"sheet":"s10","index":11,"n_rows":6,"n_cols":7,"rows_kept":6,"cut":false,"hidden":false,"merged":[]}
["Nom","Lundi","Mardi","Mercredi","Jeudi","Vendredi","Total"]
[{"$f":"synthese!B2","v":"Alfred"},null,null,null,null,null,{"$f":"SUM(B2:F2)","v":0}]
[{"$f":"synthese!B3","v":"Berthe"},null,null,null,null,null,{"$f":"SUM(B3:F3)","v":0}]
[{"$f":"synthese!B4","v":"Cesar"},null,null,null,null,null,0]
[{"$f":"synthese!B5","v":"Didier"},null,null,null,null,null,0]
[{"$f":"synthese!B6","v":"Eliane"},null,null,null,null,null,0]

{"sheet":"s11","index":12,"n_rows":6,"n_cols":7,"rows_kept":6,"cut":false,"hidden":false,"merged":[]}
["Nom","Lundi","Mardi","Mercredi","Jeudi","Vendredi","Total"]
[{"$f":"synthese!B2","v":"Alfred"},null,null,null,null,null,{"$f":"SUM(B2:F2)","v":0}]
[{"$f":"synthese!B3","v":"Berthe"},null,null,null,null,null,{"$f":"SUM(B3:F3)","v":0}]
[{"$f":"synthese!B4","v":"Cesar"},null,null,null,null,null,0]
[{"$f":"synthese!B5","v":"Didier"},null,null,null,null,null,0]
[{"$f":"synthese!B6","v":"Eliane"},null,null,null,null,null,0]

{"sheet":"s12","index":13,"n_rows":6,"n_cols":7,"rows_kept":6,"cut":false,"hidden":false,"merged":[]}
["Nom","Lundi","Mardi","Mercredi","Jeudi","Vendredi","Total"]
[{"$f":"synthese!B2","v":"Alfred"},null,null,null,null,null,{"$f":"SUM(B2:F2)","v":0}]
[{"$f":"synthese!B3","v":"Berthe"},null,null,null,null,null,{"$f":"SUM(B3:F3)","v":0}]
[{"$f":"synthese!B4","v":"Cesar"},null,null,null,null,null,0]
[{"$f":"synthese!B5","v":"Didier"},null,null,null,null,null,0]
[{"$f":"synthese!B6","v":"Eliane"},null,null,null,null,null,0]

{"sheet":"s13","index":14,"n_rows":6,"n_cols":7,"rows_kept":6,"cut":false,"hidden":false,"merged":[]}
["Nom","Lundi","Mardi","Mercredi","Jeudi","Vendredi","Total"]
[{"$f":"synthese!B2","v":"Alfred"},null,null,null,null,null,{"$f":"SUM(B2:F2)","v":0}]
[{"$f":"synthese!B3","v":"Berthe"},null,null,null,null,null,{"$f":"SUM(B3:F3)","v":0}]
[{"$f":"synthese!B4","v":"Cesar"},null,null,null,null,null,0]
[{"$f":"synthese!B5","v":"Didier"},null,null,null,null,null,0]
[{"$f":"synthese!B6","v":"Eliane"},null,null,null,null,null,0]

{"sheet":"s14","index":15,"n_rows":6,"n_cols":7,"rows_kept":6,"cut":false,"hidden":false,"merged":[]}
["Nom","Lundi","Mardi","Mercredi","Jeudi","Vendredi","Total"]
[{"$f":"synthese!B2","v":"Alfred"},null,null,null,null,null,{"$f":"SUM(B2:F2)","v":0}]
[{"$f":"synthese!B3","v":"Berthe"},null,null,null,null,null,{"$f":"SUM(B3:F3)","v":0}]
[{"$f":"synthese!B4","v":"Cesar"},null,null,null,null,null,0]
[{"$f":"synthese!B5","v":"Didier"},null,null,null,null,null,0]
[{"$f":"synthese!B6","v":"Eliane"},null,null,null,null,null,0]

{"sheet":"s15","index":16,"n_rows":6,"n_cols":7,"rows_kept":6,"cut":false,"hidden":false,"merged":[]}
["Nom","Lundi","Mardi","Mercredi","Jeudi","Vendredi","Total"]
[{"$f":"synthese!B2","v":"Alfred"},null,null,null,null,null,{"$f":"SUM(B2:F2)","v":0}]
[{"$f":"synthese!B3","v":"Berthe"},null,null,null,null,null,{"$f":"SUM(B3:F3)","v":0}]
[{"$f":"synthese!B4","v":"Cesar"},null,null,null,null,null,0]
[{"$f":"synthese!B5","v":"Didier"},null,null,null,null,null,0]
[{"$f":"synthese!B6","v":"Eliane"},null,null,null,null,null,0]

{"sheet":"s16","index":17,"n_rows":6,"n_cols":7,"rows_kept":6,"cut":false,"hidden":false,"merged":[]}
["Nom","Lundi","Mardi","Mercredi","Jeudi","Vendredi","Total"]
[{"$f":"synthese!B2","v":"Alfred"},null,null,null,null,null,{"$f":"SUM(B2:F2)","v":0}]
[{"$f":"synthese!B3","v":"Berthe"},null,null,null,null,null,{"$f":"SUM(B3:F3)","v":0}]
[{"$f":"synthese!B4","v":"Cesar"},null,null,null,null,null,0]
[{"$f":"synthese!B5","v":"Didier"},null,null,null,null,null,0]
[{"$f":"synthese!B6","v":"Eliane"},null,null,null,null,null,0]

{"sheet":"publipostage","index":18,"n_rows":4,"n_cols":3,"rows_kept":4,"cut":false,"hidden":false,"merged":[]}
["Nom","Email","Total"]
["Alfred","...",4]
["Cesar","...",3]
["Eliane","...",3]